[Event "Titled Tuesday Blitz January 25 2022"]
[White "Ronka, Erik"]
[Black "Belyakov, Bogdan"]
[WhiteFideId "505080"]
[BlackFideId "24104795"]
[WhiteElo "2264"]
[BlackElo "2407"]
[Result "0-1"]
[Round "08"]
[TimeControl "180+1"]
[Date "2022.01.26"]
[WhiteClock "0:00:02"]
[BlackClock "0:00:13"]

1. d4 {[%clk 0:03:00]}  Nf6 {[%clk 0:02:59]} 2. Nf3 {[%clk 0:03:01]}  g6 {[%clk 0:02:59]} 3. g3 {[%clk 0:03:02]}  Bg7 {[%clk 0:03:00]} 4. Bg2 {[%clk 0:03:02]}  O-O {[%clk 0:02:59]} 5. O-O {[%clk 0:03:03]}  d6 {[%clk 0:02:55]} 6. b3 {[%clk 0:03:03]}  a5 {[%clk 0:02:50]} 7. Bb2 {[%clk 0:03:00]}  a4 {[%clk 0:02:50]} 8. c4 {[%clk 0:03:00]}  Nbd7 {[%clk 0:02:42]} 9. b4 {[%clk 0:02:59]}  Nb6 {[%clk 0:02:37]} 10. Na3 {[%clk 0:02:45]}  Nfd7 {[%clk 0:02:33]} 11. Qc2 {[%clk 0:02:34]}  c5 {[%clk 0:02:32]} 12. bxc5 {[%clk 0:02:25]}  dxc5 {[%clk 0:02:32]} 13. d5 {[%clk 0:02:26]}  Bxb2 {[%clk 0:02:32]} 14. Qxb2 {[%clk 0:02:26]}  Nf6 {[%clk 0:02:26]} 15. Rfe1 {[%clk 0:02:22]}  Ne4 {[%clk 0:02:23]} 16. Rab1 {[%clk 0:02:12]}  Ra6 {[%clk 0:02:22]} 17. Ne5 {[%clk 0:02:08]}  Nd6 {[%clk 0:02:21]} 18. Qc3 {[%clk 0:02:04]}  f5 {[%clk 0:02:14]} 19. Nd3 {[%clk 0:02:01]}  Qc7 {[%clk 0:02:05]} 20. Nb5 {[%clk 0:02:00]}  Qd8 {[%clk 0:01:53]} 21. Nxd6 {[%clk 0:01:52]}  exd6 {[%clk 0:01:52]} 22. e4 {[%clk 0:01:53]}  fxe4 {[%clk 0:01:51]} 23. Nf4 {[%clk 0:01:44]}  Qf6 {[%clk 0:01:48]} 24. Qc2 {[%clk 0:01:26]}  Nd7 {[%clk 0:01:17]} 25. Ne6 {[%clk 0:01:20]}  Rf7 {[%clk 0:01:14]} 26. Rxe4 {[%clk 0:01:18]}  Ne5 {[%clk 0:01:14]} 27. Rf4 {[%clk 0:01:13]}  Qe7 {[%clk 0:01:11]} 28. Rxf7 {[%clk 0:01:11]}  Qxf7 {[%clk 0:01:08]} 29. f4 {[%clk 0:01:10]}  Ng4 {[%clk 0:01:04]} 30. Re1 {[%clk 0:01:06]}  Qf6 {[%clk 0:01:04]} 31. h3 {[%clk 0:01:04]}  Nh6 {[%clk 0:01:03]} 32. Qe4 {[%clk 0:00:51]}  Bd7 {[%clk 0:00:54]} 33. g4 {[%clk 0:00:50]}  Nf7 {[%clk 0:00:42]} 34. Qb1 {[%clk 0:00:47]}  b5 {[%clk 0:00:40]} 35. cxb5 {[%clk 0:00:36]}  Rb6 {[%clk 0:00:40]} 36. Qc2 {[%clk 0:00:17]}  Bxb5 {[%clk 0:00:32]} 37. Kh1 {[%clk 0:00:16]}  Bd7 {[%clk 0:00:31]} 38. Qd2 {[%clk 0:00:15]}  Qb2 {[%clk 0:00:18]} 39. Qa5 {[%clk 0:00:13]}  Qb4 {[%clk 0:00:18]} 40. Qxb4 {[%clk 0:00:04]}  cxb4 {[%clk 0:00:18]} 41. Nd4 {[%clk 0:00:04]}  b3 {[%clk 0:00:18]} 42. axb3 {[%clk 0:00:05]}  axb3 {[%clk 0:00:18]} 43. Rb1 {[%clk 0:00:05]}  b2 {[%clk 0:00:19]} 44. Be4 {[%clk 0:00:04]}  Nd8 {[%clk 0:00:16]} 45. Ne2 {[%clk 0:00:03]}  Nb7 {[%clk 0:00:16]} 46. Nc3 {[%clk 0:00:03]}  Nc5 {[%clk 0:00:15]} 47. Bc2 {[%clk 0:00:02]}  Rb4 {[%clk 0:00:15]} 48. Nd1 {[%clk 0:00:02]}  Ba4 {[%clk 0:00:13]} 49. Bxa4 {[%clk 0:00:01]}  Nxa4 {[%clk 0:00:14]} 50. Kg2 {[%clk 0:00:02]}  Rd4 {[%clk 0:00:13]} 0-1


[Site "https://www.chess.com"]

[Event "Titled Tuesday Blitz January 25 2022"]
[White "Ruperez Benito, Antonio"]
[Black "Iskusnyh, Sergei"]
[WhiteFideId "22245049"]
[BlackFideId "4120027"]
[WhiteElo "2249"]
[BlackElo "2492"]
[Result "0-1"]
[Round "08"]
[TimeControl "180+1"]
[Date "2022.01.26"]
[WhiteClock "0:00:07"]
[BlackClock "0:00:12"]

1. d4 {[%clk 0:03:00]}  d5 {[%clk 0:02:59]} 2. c4 {[%clk 0:02:58]}  c6 {[%clk 0:02:59]} 3. Nf3 {[%clk 0:02:44]}  Nf6 {[%clk 0:02:57]} 4. Nc3 {[%clk 0:02:44]}  e6 {[%clk 0:02:55]} 5. Bg5 {[%clk 0:02:41]}  Be7 {[%clk 0:02:49]} 6. e3 {[%clk 0:02:41]}  h6 {[%clk 0:02:45]} 7. Bh4 {[%clk 0:02:41]}  Nbd7 {[%clk 0:02:44]} 8. Rc1 {[%clk 0:02:37]}  O-O {[%clk 0:02:42]} 9. h3 {[%clk 0:02:37]}  a6 {[%clk 0:02:06]} 10. c5 {[%clk 0:02:33]}  b6 {[%clk 0:02:06]} 11. cxb6 {[%clk 0:02:31]}  Qxb6 {[%clk 0:02:03]} 12. Qc2 {[%clk 0:02:18]}  c5 {[%clk 0:01:58]} 13. Be2 {[%clk 0:02:16]}  cxd4 {[%clk 0:01:53]} 14. Nxd4 {[%clk 0:02:11]}  Bb7 {[%clk 0:01:50]} 15. O-O {[%clk 0:02:11]}  Rfc8 {[%clk 0:01:49]} 16. Qb3 {[%clk 0:02:06]}  Bc5 {[%clk 0:01:36]} 17. Rfd1 {[%clk 0:02:02]}  Bxd4 {[%clk 0:01:24]} 18. exd4 {[%clk 0:01:51]}  Qxb3 {[%clk 0:01:22]} 19. axb3 {[%clk 0:01:52]}  Bc6 {[%clk 0:01:13]} 20. Na4 {[%clk 0:01:43]}  Bb5 {[%clk 0:01:07]} 21. Bxb5 {[%clk 0:01:32]}  axb5 {[%clk 0:01:07]} 22. Nc5 {[%clk 0:01:33]}  Nxc5 {[%clk 0:00:55]} 23. Rxc5 {[%clk 0:01:20]}  Ne4 {[%clk 0:00:51]} 24. Rxc8+ {[%clk 0:01:10]}  Rxc8 {[%clk 0:00:50]} 25. f3 {[%clk 0:01:10]}  Nd6 {[%clk 0:00:44]} 26. Rd2 {[%clk 0:01:09]}  Nf5 {[%clk 0:00:38]} 27. Bf2 {[%clk 0:01:08]}  Rc1+ {[%clk 0:00:35]} 28. Kh2 {[%clk 0:01:09]}  g5 {[%clk 0:00:35]} 29. g4 {[%clk 0:01:06]}  Ne7 {[%clk 0:00:32]} 30. Bg3 {[%clk 0:01:04]}  Nc6 {[%clk 0:00:30]} 31. h4 {[%clk 0:01:00]}  Kg7 {[%clk 0:00:28]} 32. hxg5 {[%clk 0:00:59]}  hxg5 {[%clk 0:00:29]} 33. Bf2 {[%clk 0:00:59]}  Nb4 {[%clk 0:00:25]} 34. Be3 {[%clk 0:00:56]}  Kg6 {[%clk 0:00:22]} 35. Kg2 {[%clk 0:00:56]}  Rc2 {[%clk 0:00:18]} 36. Kf2 {[%clk 0:00:53]}  Rxd2+ {[%clk 0:00:12]} 37. Bxd2 {[%clk 0:00:52]}  Nc6 {[%clk 0:00:13]} 38. Ke3 {[%clk 0:00:51]}  f5 {[%clk 0:00:13]} 39. Bc3 {[%clk 0:00:45]}  f4+ {[%clk 0:00:12]} 40. Kd3 {[%clk 0:00:45]}  Kf6 {[%clk 0:00:13]} 41. Be1 {[%clk 0:00:40]}  e5 {[%clk 0:00:13]} 42. Bc3 {[%clk 0:00:24]}  Ke6 {[%clk 0:00:11]} 43. dxe5 {[%clk 0:00:16]}  Nxe5+ {[%clk 0:00:11]} 44. Bxe5 {[%clk 0:00:15]}  Kxe5 {[%clk 0:00:10]} 45. Ke2 {[%clk 0:00:13]}  Kd4 {[%clk 0:00:10]} 46. Kd2 {[%clk 0:00:13]}  Kc5 {[%clk 0:00:10]} 47. Kc3 {[%clk 0:00:13]}  d4+ {[%clk 0:00:09]} 48. Kd3 {[%clk 0:00:13]}  Kb4 {[%clk 0:00:09]} 49. Kxd4 {[%clk 0:00:14]}  Kxb3 {[%clk 0:00:10]} 50. Kc5 {[%clk 0:00:04]}  Kxb2 {[%clk 0:00:09]} 51. Kxb5 {[%clk 0:00:04]}  Kc3 {[%clk 0:00:10]} 52. Kc5 {[%clk 0:00:04]}  Kd3 {[%clk 0:00:11]} 53. Kd5 {[%clk 0:00:05]}  Ke3 {[%clk 0:00:11]} 54. Ke5 {[%clk 0:00:06]}  Kxf3 {[%clk 0:00:12]} 55. Kf5 {[%clk 0:00:07]}  Ke3 {[%clk 0:00:12]} 56. Kxg5 {[%clk 0:00:08]}  f3 {[%clk 0:00:12]} 57. Kh6 {[%clk 0:00:08]}  f2 {[%clk 0:00:13]} 58. g5 {[%clk 0:00:09]}  f1=Q {[%clk 0:00:13]} 59. g6 {[%clk 0:00:10]}  Qh3+ {[%clk 0:00:14]} 60. Kg7 {[%clk 0:00:10]}  Qf5 {[%clk 0:00:14]} 61. Kh6 {[%clk 0:00:10]}  Qf6 {[%clk 0:00:14]} 62. Kh7 {[%clk 0:00:10]}  Qh4+ {[%clk 0:00:13]} 63. Kg8 {[%clk 0:00:11]}  Qd8+ {[%clk 0:00:13]} 64. Kh7 {[%clk 0:00:11]}  Qd3 {[%clk 0:00:12]} 65. Kh6 {[%clk 0:00:09]}  Qf5 {[%clk 0:00:12]} 66. g7 {[%clk 0:00:09]}  Qf7 {[%clk 0:00:12]} 67. Kh7 {[%clk 0:00:08]}  Ke4 {[%clk 0:00:10]} 68. Kh8 {[%clk 0:00:08]}  Qh5+ {[%clk 0:00:10]} 69. Kg8 {[%clk 0:00:08]}  Ke5 {[%clk 0:00:11]} 70. Kf8 {[%clk 0:00:08]}  Qf5+ {[%clk 0:00:11]} 71. Ke8 {[%clk 0:00:09]}  Qg6+ {[%clk 0:00:10]} 72. Kf8 {[%clk 0:00:09]}  Qf6+ {[%clk 0:00:11]} 73. Kg8 {[%clk 0:00:10]}  Ke6 {[%clk 0:00:11]} 74. Kh7 {[%clk 0:00:08]}  Qf5+ {[%clk 0:00:11]} 75. Kh8 {[%clk 0:00:07]}  Qh5+ {[%clk 0:00:11]} 76. Kg8 {[%clk 0:00:07]}  Kf6 {[%clk 0:00:11]} 77. Kf8 {[%clk 0:00:07]}  Qf7# {[%clk 0:00:12]} 0-1


[Site "https://www.chess.com"]

[Event "Titled Tuesday Blitz January 25 2022"]
[White "Timofeev, Artyom"]
[Black "Shevchenko, Kirill"]
[WhiteFideId "4140419"]
[BlackFideId "14129574"]
[WhiteElo "2583"]
[BlackElo "2624"]
[Result "0-1"]
[Round "08"]
[TimeControl "180+1"]
[Date "2022.01.26"]
[WhiteClock "0:00:06"]
[BlackClock "0:00:04"]

1. d4 {[%clk 0:03:00]}  Nf6 {[%clk 0:02:59]} 2. Nf3 {[%clk 0:03:00]}  c5 {[%clk 0:02:58]} 3. Bg5 {[%clk 0:02:58]}  cxd4 {[%clk 0:02:56]} 4. Bxf6 {[%clk 0:02:58]}  gxf6 {[%clk 0:02:57]} 5. Nxd4 {[%clk 0:02:55]}  Nc6 {[%clk 0:02:57]} 6. Nc3 {[%clk 0:02:55]}  d6 {[%clk 0:02:57]} 7. e3 {[%clk 0:02:54]}  f5 {[%clk 0:02:55]} 8. g3 {[%clk 0:02:54]}  Bg7 {[%clk 0:02:50]} 9. Qd2 {[%clk 0:02:50]}  O-O {[%clk 0:02:37]} 10. Bg2 {[%clk 0:02:48]}  Ne5 {[%clk 0:02:34]} 11. Qe2 {[%clk 0:02:42]}  e6 {[%clk 0:02:30]} 12. f4 {[%clk 0:02:27]}  Nc6 {[%clk 0:02:24]} 13. O-O-O {[%clk 0:02:24]}  d5 {[%clk 0:02:15]} 14. Bf3 {[%clk 0:02:21]}  Nxd4 {[%clk 0:02:06]} 15. exd4 {[%clk 0:02:21]}  Qf6 {[%clk 0:02:06]} 16. Qe3 {[%clk 0:02:20]}  Kh8 {[%clk 0:01:58]} 17. h3 {[%clk 0:02:19]}  b5 {[%clk 0:01:30]} 18. g4 {[%clk 0:02:18]}  b4 {[%clk 0:01:30]} 19. Ne2 {[%clk 0:02:18]}  a5 {[%clk 0:01:29]} 20. Ng3 {[%clk 0:02:13]}  b3 {[%clk 0:01:16]} 21. axb3 {[%clk 0:02:04]}  a4 {[%clk 0:01:15]} 22. Nh5 {[%clk 0:02:00]}  Qe7 {[%clk 0:01:08]} 23. Nxg7 {[%clk 0:02:00]}  Kxg7 {[%clk 0:01:09]} 24. gxf5 {[%clk 0:01:54]}  axb3 {[%clk 0:01:09]} 25. Qxb3 {[%clk 0:01:42]}  Qh4 {[%clk 0:01:07]} 26. Qe3 {[%clk 0:01:40]}  exf5 {[%clk 0:00:59]} 27. Bxd5 {[%clk 0:01:37]}  Ra7 {[%clk 0:00:49]} 28. Rhg1+ {[%clk 0:01:36]}  Kh8 {[%clk 0:00:49]} 29. Qe5+ {[%clk 0:01:31]}  f6 {[%clk 0:00:49]} 30. Qe3 {[%clk 0:01:30]}  Rd8 {[%clk 0:00:47]} 31. c4 {[%clk 0:01:12]}  Bb7 {[%clk 0:00:39]} 32. Bxb7 {[%clk 0:00:57]}  Rxb7 {[%clk 0:00:38]} 33. d5 {[%clk 0:00:57]}  Rc8 {[%clk 0:00:35]} 34. Rd4 {[%clk 0:00:53]}  Rbb8 {[%clk 0:00:25]} 35. Qg3 {[%clk 0:00:31]}  Qh6 {[%clk 0:00:25]} 36. Qc3 {[%clk 0:00:26]}  Ra8 {[%clk 0:00:22]} 37. Kb1 {[%clk 0:00:26]}  Qh4 {[%clk 0:00:20]} 38. d6 {[%clk 0:00:24]}  Qf2 {[%clk 0:00:19]} 39. Rdd1 {[%clk 0:00:24]}  Rf8 {[%clk 0:00:17]} 40. d7 {[%clk 0:00:22]}  Qb6 {[%clk 0:00:15]} 41. c5 {[%clk 0:00:18]}  Qa6 {[%clk 0:00:11]} 42. c6 {[%clk 0:00:15]}  Qa1+ {[%clk 0:00:11]} 43. Kc2 {[%clk 0:00:16]}  Qa4+ {[%clk 0:00:12]} 44. Kd2 {[%clk 0:00:13]}  Qxf4+ {[%clk 0:00:11]} 45. Qe3 {[%clk 0:00:13]}  Qd6+ {[%clk 0:00:11]} 46. Ke2 {[%clk 0:00:12]}  Qxc6 {[%clk 0:00:11]} 47. Qe7 {[%clk 0:00:11]}  Qc4+ {[%clk 0:00:07]} 48. Kf3 {[%clk 0:00:10]}  Qc6+ {[%clk 0:00:06]} 49. Kf2 {[%clk 0:00:07]}  Qc2+ {[%clk 0:00:05]} 50. Kf3 {[%clk 0:00:05]}  Qb3+ {[%clk 0:00:05]} 51. Kf4 {[%clk 0:00:04]}  Ra4+ {[%clk 0:00:04]} 52. Kxf5 {[%clk 0:00:04]}  Qf3+ {[%clk 0:00:04]} 53. Ke6 {[%clk 0:00:05]}  Re4+ {[%clk 0:00:04]} 54. Kd6 {[%clk 0:00:05]}  Qf4+ {[%clk 0:00:03]} 55. Kc6 {[%clk 0:00:05]}  Rxe7 {[%clk 0:00:03]} 56. d8=Q {[%clk 0:00:05]}  Qc4+ {[%clk 0:00:03]} 57. Kb6 {[%clk 0:00:05]}  Qb4+ {[%clk 0:00:04]} 58. Kc6 {[%clk 0:00:06]}  Re6+ {[%clk 0:00:04]} 59. Kc7 {[%clk 0:00:06]}  Qb6+ {[%clk 0:00:04]} 60. Kc8 {[%clk 0:00:06]}  Rc6+ {[%clk 0:00:04]} 61. Kd7 {[%clk 0:00:07]}  Qb7+ {[%clk 0:00:04]} 62. Qc7 {[%clk 0:00:06]}  Qxc7# {[%clk 0:00:04]} 0-1


[Site "https://www.chess.com"]

[Event "Titled Tuesday Blitz January 25 2022"]
[White "Tymrakiewicz, Rafal"]
[Black "Padmini, Rout"]
[WhiteFideId "1108832"]
[BlackFideId "5029295"]
[WhiteElo "2205"]
[BlackElo "2181"]
[Result "1-0"]
[Round "08"]
[TimeControl "180+1"]
[Date "2022.01.26"]
[WhiteClock "0:00:09"]
[BlackClock "0:00:04"]

1. e4 {[%clk 0:03:00]}  c5 {[%clk 0:02:59]} 2. c3 {[%clk 0:02:54]}  g6 {[%clk 0:02:57]} 3. d4 {[%clk 0:02:52]}  Bg7 {[%clk 0:02:57]} 4. Nf3 {[%clk 0:02:50]}  d5 {[%clk 0:02:55]} 5. dxc5 {[%clk 0:02:36]}  Nf6 {[%clk 0:02:39]} 6. exd5 {[%clk 0:02:31]}  O-O {[%clk 0:02:39]} 7. Bc4 {[%clk 0:02:28]}  Nbd7 {[%clk 0:02:38]} 8. Be3 {[%clk 0:02:24]}  Ne4 {[%clk 0:02:24]} 9. O-O {[%clk 0:02:11]}  Ndxc5 {[%clk 0:02:21]} 10. Re1 {[%clk 0:02:06]}  Bd7 {[%clk 0:02:11]} 11. Bd4 {[%clk 0:01:59]}  b5 {[%clk 0:02:02]} 12. Bxg7 {[%clk 0:01:52]}  Kxg7 {[%clk 0:02:03]} 13. Bf1 {[%clk 0:01:46]}  Nf6 {[%clk 0:01:56]} 14. Qd4 {[%clk 0:01:41]}  Na4 {[%clk 0:01:54]} 15. b3 {[%clk 0:01:35]}  Nb6 {[%clk 0:01:49]} 16. c4 {[%clk 0:01:35]}  bxc4 {[%clk 0:01:50]} 17. bxc4 {[%clk 0:01:36]}  Rc8 {[%clk 0:01:35]} 18. Nbd2 {[%clk 0:01:35]}  Na4 {[%clk 0:01:14]} 19. Ne4 {[%clk 0:01:34]}  Qb6 {[%clk 0:01:10]} 20. Nxf6 {[%clk 0:01:20]}  exf6 {[%clk 0:01:08]} 21. Rab1 {[%clk 0:01:08]}  Qxd4 {[%clk 0:01:05]} 22. Nxd4 {[%clk 0:01:09]}  Nb6 {[%clk 0:01:06]} 23. Rb4 {[%clk 0:01:04]}  Rfe8 {[%clk 0:00:50]} 24. Re3 {[%clk 0:01:02]}  f5 {[%clk 0:00:28]} 25. g3 {[%clk 0:01:00]}  Kf6 {[%clk 0:00:25]} 26. Ra3 {[%clk 0:00:40]}  Re1 {[%clk 0:00:19]} 27. Rxa7 {[%clk 0:00:38]}  Nxc4 {[%clk 0:00:10]} 28. Nf3 {[%clk 0:00:21]}  Rxf1+ {[%clk 0:00:06]} 29. Kxf1 {[%clk 0:00:20]}  Be8 {[%clk 0:00:07]} 30. Nd4 {[%clk 0:00:15]}  Nd2+ {[%clk 0:00:06]} 31. Ke2 {[%clk 0:00:15]}  Ne4 {[%clk 0:00:06]} 32. f3 {[%clk 0:00:13]}  Nc3+ {[%clk 0:00:06]} 33. Kf2 {[%clk 0:00:12]}  Nxd5 {[%clk 0:00:07]} 34. Rb2 {[%clk 0:00:12]}  Rc3 {[%clk 0:00:06]} 35. Ne2 {[%clk 0:00:12]}  Rd3 {[%clk 0:00:06]} 36. Rbb7 {[%clk 0:00:10]}  Ne3 {[%clk 0:00:05]} 37. Re7 {[%clk 0:00:09]}  Nd1+ {[%clk 0:00:05]} 38. Ke1 {[%clk 0:00:09]}  Bb5 {[%clk 0:00:05]} 39. Rxf7+ {[%clk 0:00:09]}  Kg5 {[%clk 0:00:04]} 40. h4+ {[%clk 0:00:08]}  Kh6 {[%clk 0:00:04]} 41. Rxh7# {[%clk 0:00:09]} 1-0


[Site "https://www.chess.com"]

[Event "Titled Tuesday Blitz January 25 2022"]
[White "Villegas, Pierre"]
[Black "Havanecz, Bianka"]
[WhiteFideId "654183"]
[BlackFideId "704814"]
[WhiteElo "2410"]
[BlackElo "2375"]
[Result "0-1"]
[Round "08"]
[TimeControl "180+1"]
[Date "2022.01.26"]
[WhiteClock "0:00:11"]
[BlackClock "0:00:47"]

1. c4 {[%clk 0:03:00]}  c5 {[%clk 0:02:59]} 2. Nf3 {[%clk 0:02:59]}  Nc6 {[%clk 0:02:58]} 3. b3 {[%clk 0:02:58]}  Nf6 {[%clk 0:02:52]} 4. Bb2 {[%clk 0:02:58]}  e6 {[%clk 0:02:52]} 5. g3 {[%clk 0:02:56]}  Be7 {[%clk 0:02:52]} 6. Bg2 {[%clk 0:02:56]}  O-O {[%clk 0:02:53]} 7. O-O {[%clk 0:02:56]}  d5 {[%clk 0:02:52]} 8. cxd5 {[%clk 0:02:57]}  exd5 {[%clk 0:02:52]} 9. d4 {[%clk 0:02:57]}  c4 {[%clk 0:02:41]} 10. Ne5 {[%clk 0:02:53]}  Bd7 {[%clk 0:02:32]} 11. bxc4 {[%clk 0:02:41]}  dxc4 {[%clk 0:02:13]} 12. Nxc4 {[%clk 0:02:39]}  Rc8 {[%clk 0:02:11]} 13. Ne5 {[%clk 0:02:32]}  Qb6 {[%clk 0:01:57]} 14. Nxc6 {[%clk 0:01:26]}  Bxc6 {[%clk 0:01:52]} 15. Qb3 {[%clk 0:01:03]}  Bxg2 {[%clk 0:01:49]} 16. Kxg2 {[%clk 0:01:01]}  Qxb3 {[%clk 0:01:36]} 17. axb3 {[%clk 0:01:02]}  Rc2 {[%clk 0:01:36]} 18. Ba3 {[%clk 0:01:02]}  Bxa3 {[%clk 0:01:30]} 19. Rxa3 {[%clk 0:01:03]}  a6 {[%clk 0:01:22]} 20. Kf3 {[%clk 0:00:56]}  Rfc8 {[%clk 0:01:20]} 21. Rd1 {[%clk 0:00:40]}  Rb2 {[%clk 0:01:10]} 22. Nd2 {[%clk 0:00:39]}  Rc3+ {[%clk 0:01:03]} 23. Kg2 {[%clk 0:00:18]}  Kf8 {[%clk 0:00:52]} 24. Nc4 {[%clk 0:00:15]}  Rxe2 {[%clk 0:00:49]} 25. Ne3 {[%clk 0:00:11]}  Rcxe3 {[%clk 0:00:47]} 0-1


[Site "https://www.chess.com"]

[Event "Titled Tuesday Blitz January 25 2022"]
[White "Wagner, Dennis"]
[Black "Pajeken, Jakob Leon"]
[WhiteFideId "24650684"]
[BlackFideId "12942839"]
[WhiteElo "2355"]
[BlackElo "2351"]
[Result "1-0"]
[Round "08"]
[TimeControl "180+1"]
[Date "2022.01.26"]
[WhiteClock "0:00:47"]
[BlackClock "0:00:40"]

1. d4 {[%clk 0:03:00]}  d5 {[%clk 0:02:58]} 2. c4 {[%clk 0:03:01]}  dxc4 {[%clk 0:02:58]} 3. Nf3 {[%clk 0:03:00]}  Nf6 {[%clk 0:02:59]} 4. e3 {[%clk 0:03:00]}  e6 {[%clk 0:02:58]} 5. Bxc4 {[%clk 0:03:00]}  c5 {[%clk 0:02:55]} 6. O-O {[%clk 0:03:00]}  Nc6 {[%clk 0:02:55]} 7. Nc3 {[%clk 0:02:50]}  a6 {[%clk 0:02:55]} 8. dxc5 {[%clk 0:02:47]}  Qxd1 {[%clk 0:02:52]} 9. Rxd1 {[%clk 0:02:48]}  Bxc5 {[%clk 0:02:52]} 10. Nd2 {[%clk 0:02:47]}  b5 {[%clk 0:02:47]} 11. Be2 {[%clk 0:02:47]}  Bb7 {[%clk 0:02:46]} 12. Nb3 {[%clk 0:02:47]}  Be7 {[%clk 0:02:27]} 13. f3 {[%clk 0:02:34]}  O-O {[%clk 0:02:26]} 14. e4 {[%clk 0:02:34]}  Rfd8 {[%clk 0:02:07]} 15. Be3 {[%clk 0:02:34]}  Nd7 {[%clk 0:01:56]} 16. Kf2 {[%clk 0:02:28]}  Nde5 {[%clk 0:01:54]} 17. Nc5 {[%clk 0:02:23]}  Bxc5 {[%clk 0:01:52]} 18. Bxc5 {[%clk 0:02:24]}  Nc4 {[%clk 0:01:34]} 19. b3 {[%clk 0:02:20]}  Nb2 {[%clk 0:01:31]} 20. Rxd8+ {[%clk 0:02:12]}  Rxd8 {[%clk 0:01:29]} 21. Ke3 {[%clk 0:02:10]}  b4 {[%clk 0:01:27]} 22. Nd1 {[%clk 0:01:56]}  Nxd1+ {[%clk 0:01:26]} 23. Rxd1 {[%clk 0:01:51]}  Rxd1 {[%clk 0:01:25]} 24. Bxd1 {[%clk 0:01:52]}  f5 {[%clk 0:01:18]} 25. exf5 {[%clk 0:01:28]}  exf5 {[%clk 0:01:19]} 26. Kf4 {[%clk 0:01:25]}  g6 {[%clk 0:01:16]} 27. Be2 {[%clk 0:01:19]}  Kg7 {[%clk 0:01:12]} 28. h4 {[%clk 0:01:18]}  Kf6 {[%clk 0:01:09]} 29. g4 {[%clk 0:01:16]}  Nd8 {[%clk 0:00:58]} 30. g5+ {[%clk 0:01:05]}  Ke6 {[%clk 0:00:57]} 31. Bxb4 {[%clk 0:01:02]}  Kd5 {[%clk 0:00:55]} 32. Bc4+ {[%clk 0:01:00]}  Kd4 {[%clk 0:00:54]} 33. Be7 {[%clk 0:00:49]}  Nc6 {[%clk 0:00:39]} 34. Bf6+ {[%clk 0:00:49]}  Kc5 {[%clk 0:00:40]} 35. Bg8 {[%clk 0:00:49]}  Nb4 {[%clk 0:00:40]} 36. Be7+ {[%clk 0:00:47]} 1-0


[Site "https://www.chess.com"]

[Event "Titled Tuesday Blitz January 25 2022"]
[White "Yang, Kaiqi"]
[Black "Pandey Srishti"]
[WhiteFideId "8604398"]
[BlackFideId "35093290"]
[WhiteElo "2373"]
[BlackElo "1832"]
[Result "1-0"]
[Round "08"]
[TimeControl "180+1"]
[Date "2022.01.26"]
[WhiteClock "0:00:06"]
[BlackClock "0:00:29"]

1. c4 {[%clk 0:02:49]}  e6 {[%clk 0:02:57]} 2. g3 {[%clk 0:02:49]}  d5 {[%clk 0:02:55]} 3. d4 {[%clk 0:02:50]}  c6 {[%clk 0:02:55]} 4. Nf3 {[%clk 0:02:47]}  Nf6 {[%clk 0:02:54]} 5. Bg2 {[%clk 0:02:48]}  Bb4+ {[%clk 0:02:52]} 6. Nc3 {[%clk 0:02:44]}  O-O {[%clk 0:02:52]} 7. O-O {[%clk 0:02:44]}  Bxc3 {[%clk 0:02:48]} 8. bxc3 {[%clk 0:02:44]}  Ne4 {[%clk 0:02:49]} 9. Qc2 {[%clk 0:02:43]}  f5 {[%clk 0:02:45]} 10. a4 {[%clk 0:02:31]}  b6 {[%clk 0:02:43]} 11. Ne5 {[%clk 0:02:28]}  Ba6 {[%clk 0:02:32]} 12. Rd1 {[%clk 0:02:17]}  Qc8 {[%clk 0:02:23]} 13. a5 {[%clk 0:02:10]}  Nd7 {[%clk 0:02:20]} 14. Ba3 {[%clk 0:01:55]}  Rf6 {[%clk 0:02:16]} 15. f3 {[%clk 0:01:45]}  Ng5 {[%clk 0:02:14]} 16. Be7 {[%clk 0:01:39]}  Nxe5 {[%clk 0:02:06]} 17. Bxf6 {[%clk 0:01:36]}  gxf6 {[%clk 0:02:05]} 18. dxe5 {[%clk 0:01:36]}  fxe5 {[%clk 0:02:05]} 19. axb6 {[%clk 0:01:30]}  axb6 {[%clk 0:02:01]} 20. f4 {[%clk 0:01:14]}  exf4 {[%clk 0:01:58]} 21. gxf4 {[%clk 0:01:15]}  Ne4 {[%clk 0:01:54]} 22. Bxe4 {[%clk 0:01:14]}  fxe4 {[%clk 0:01:55]} 23. Kf2 {[%clk 0:01:06]}  Bxc4 {[%clk 0:01:49]} 24. Rg1+ {[%clk 0:01:05]}  Kf7 {[%clk 0:01:47]} 25. Rxa8 {[%clk 0:00:56]}  Qxa8 {[%clk 0:01:48]} 26. Qd2 {[%clk 0:00:54]}  c5 {[%clk 0:01:44]} 27. f5 {[%clk 0:00:48]}  Qf8 {[%clk 0:01:40]} 28. Qf4 {[%clk 0:00:38]}  exf5 {[%clk 0:01:35]} 29. Qc7+ {[%clk 0:00:38]}  Ke6 {[%clk 0:01:25]} 30. Qxh7 {[%clk 0:00:36]}  d4 {[%clk 0:01:11]} 31. Rg6+ {[%clk 0:00:33]}  Ke5 {[%clk 0:01:03]} 32. Qc7+ {[%clk 0:00:30]}  Kd5 {[%clk 0:01:03]} 33. Qc6+ {[%clk 0:00:16]}  Ke5 {[%clk 0:01:01]} 34. cxd4+ {[%clk 0:00:15]}  Kxd4 {[%clk 0:00:59]} 35. Qxb6 {[%clk 0:00:14]}  e3+ {[%clk 0:00:58]} 36. Kf3 {[%clk 0:00:11]}  Bd5+ {[%clk 0:00:57]} 37. Kf4 {[%clk 0:00:12]}  Qe7 {[%clk 0:00:53]} 38. Qb2+ {[%clk 0:00:11]}  Kc4 {[%clk 0:00:52]} 39. Qc2+ {[%clk 0:00:09]}  Kd4 {[%clk 0:00:50]} 40. Qxf5 {[%clk 0:00:09]}  Qh4+ {[%clk 0:00:48]} 41. Rg4 {[%clk 0:00:09]}  Qh6+ {[%clk 0:00:45]} 42. Kg3+ {[%clk 0:00:09]}  Kc3 {[%clk 0:00:44]} 43. Qxd5 {[%clk 0:00:08]}  Qb6 {[%clk 0:00:38]} 44. Qc4+ {[%clk 0:00:07]}  Kd2 {[%clk 0:00:38]} 45. Rg5 {[%clk 0:00:06]}  Qd6+ {[%clk 0:00:37]} 46. Qf4 {[%clk 0:00:05]}  Qe6 {[%clk 0:00:32]} 47. Re5 {[%clk 0:00:05]}  Qg8+ {[%clk 0:00:31]} 48. Kf3 {[%clk 0:00:04]}  Qg1 {[%clk 0:00:28]} 49. Qxe3+ {[%clk 0:00:04]}  Qxe3+ {[%clk 0:00:28]} 50. Rxe3 {[%clk 0:00:04]}  c4 {[%clk 0:00:28]} 51. h4 {[%clk 0:00:05]}  c3 {[%clk 0:00:29]} 52. Rxc3 {[%clk 0:00:05]}  Kxc3 {[%clk 0:00:29]} 53. h5 {[%clk 0:00:06]} 1-0


[Site "https://www.chess.com"]